{"text_format":"1","workbook":"xlsx","n_sheets":6,"sheets":["【共通】申込書","①相談対応","②情報提供","③リストアップ","③-2アポ取得","▼選択肢"],"not_rendered":{"charts":0,"images":0,"macros":1,"external_links":0,"defined_names":11,"comments":0,"pivot_tables":0},"unopened":[],"bounds":{"document_bytes":16777216,"sheet_cells":100000,"rows_first":2000,"rows_last":500,"rows_between":2000,"halvings":0,"cell_chars":16384,"cell_head_chars":4096},"cells_cut":0,"cells_raw":0,"read":"whole","date_system":"1900"}

{"sheet":"【共通】申込書","index":0,"n_rows":44,"n_cols":11,"rows_kept":44,"cut":false,"hidden":false,"merged":[[1,1,1,5],[13,3,13,5],[14,3,14,5],[15,3,15,5],[10,3,10,5],[12,3,12,5],[4,1,4,2],[9,3,9,5],[4,4,4,5],[8,4,8,5],[6,1,7,1],[8,1,9,1],[6,3,6,5],[7,3,7,5],[24,3,24,5],[25,3,25,5],[18,1,18,2],[29,3,29,5],[11,3,11,5],[18,3,18,5],[28,3,28,5],[23,3,23,5],[19,4,21,5],[27,1,27,2],[27,4,27,5],[10,1,15,1],[17,3,17,5],[22,1,22,2],[26,3,26,5],[16,3,16,5],[43,1,43,4],[33,3,33,5],[32,3,32,5],[30,3,30,5],[31,3,31,5],[41,3,41,5],[36,3,36,5],[35,1,35,2],[35,3,35,5],[36,1,38,1],[37,3,37,5],[38,3,38,5],[30,1,33,1],[40,3,40,5],[39,3,39,5],[39,1,41,2],[1,6,1,10],[2,6,2,10],[4,6,4,7],[4,9,4,10],[5,6,5,7],[16,1,16,2],[19,1,21,1],[5,1,5,2],[2,1,2,5],[8,6,9,6],[10,6,15,6],[8,9,8,10],[9,8,9,10],[6,8,6,10],[6,6,7,6],[7,8,7,10],[10,8,10,10],[11,8,11,10],[12,8,12,10],[13,8,13,10],[14,8,14,10],[15,8,15,10],[18,6,18,7],[18,8,18,10],[19,6,21,6],[19,9,21,10],[16,6,16,7],[16,8,16,10],[17,8,17,10],[27,6,27,7],[28,8,28,10],[27,9,27,10],[22,6,22,7],[23,8,23,10],[24,8,24,10],[25,8,25,10],[26,8,26,10],[29,8,29,10],[30,6,33,6],[30,8,30,10],[31,8,31,10],[32,8,32,10],[33,8,33,10],[41,8,41,10],[35,6,35,7],[35,8,35,10],[36,6,38,6],[36,8,36,10],[37,8,37,10],[38,8,38,10],[40,8,40,10],[39,8,39,10],[39,6,41,7]]}
[null,null,null,null,null,"2021.9ver",null,null,null,null,"2021.9ver"]
[null,"2021年度　JETRO　アフリカビジネスデスク申込書\n各サービス共通申込書",null,null,null,null,"JETRO Africa Business Desk 2021\nAPPLICATION FORM for all services"]
[null,"※この薄黄色のセルは必須入力項目です。入力後無色になります。お申込前にご確認ください。",null,null,null,null,"※こちら側の情報は英語で記入ください。"]
[null,"<基本情報>",null,null,null,null,"<Basic Information>"]
[null,"申込日（年/月/日）",null,null,null,null,"Application Date（Year/Month/Date）",null,{"$f":"D5","v":"00:00:00"}]
[null,"申請会社の所在地（日本・海外）",null,"▼選択","所在国",null,"Location of the Applying Company",null,{"$f":"IFERROR(VLOOKUP(D6,▼選択肢!B:C,2,FALSE),\"\")","v":"-"},"Country"]
[null,"企業名","フリガナ",null,null,null,"Company Name"]
[null,null,"名称　※法人名の省略「㈱、(合)」等は不可",null,null,null,null,"Company name"]
[null,"企業所在地","〒",null,null,null,"Company Address","〒",{"$f":"D9","v":0}]
[null,null,"住所",null,null,null,null,"Address"]
[null,"担当者情報","所属部署",null,null,null,"Contact Person","Department name"]
[null,null,"役職名",null,null,null,null,"Job title"]
[null,null,"フリガナ"]
[null,null,"氏名",null,null,null,null,"Name"]
[null,null,"TEL",null,null,null,null,"TEL"]
[null,null,"E-mail",null,null,null,null,"E-mail",{"$f":"D16","v":0}]
[null,"業種",null,"▼選択",null,null,"Industry",null,{"$f":"IFERROR(VLOOKUP(D17,▼選択肢!D:E,2,FALSE),\"\")","v":"-"}]
[null,null,"その他を選択した場合業種を記載下さい。",null,null,null,null,"Others"]
[null,"ウェブサイト URL",null,null,null,null,"Website (in English)"]
[null,"規模\n（日本法人）","資本金(円)",null,null,null,"Japanese Company Size","Capital (Yen)",{"$f":"D20","v":0}]
[null,null,"従業員数(人)",null,null,null,null,"Total employees",{"$f":"D21","v":0}]
[null,null,"設立年（西暦）",null,null,null,null,"Established year",{"$f":"D22","v":0}]
[null,"輸出経験<過去5年以内＞",null,"▼選択","輸出形態","▼選択","Export Experience <Within the last 5 years＞",null,{"$f":"IFERROR(VLOOKUP(D23,▼選択肢!J:K,2,FALSE),\"\")","v":"-"},"Direct or indirect export",{"$f":"IFERROR(VLOOKUP(F23,▼選択肢!L:M,2,FALSE),\"\")","v":"-"}]
[null,null,"輸出相手国",null,null,null,null,"Exporting countries"]
[null,null,"輸出先業態",null,null,null,null,"Exporting partners"]
[null,null,"輸出商品",null,null,null,null,"Export products"]
[null,null,"輸出量・額等実績",null,null,null,null,"Export volume / value"]
[null,"現在の進捗状況",null,"▼選択","その他（　　　　　　　       　　　　　　　）",null,"Current Business Phase",null,{"$f":"IFERROR(VLOOKUP(D28,▼選択肢!H:I,2,FALSE),\"\")","v":"-"},"Others（　　　　　　　　       　　　　　　　　）"]
[null,"ビジネスモデル","想定される製造・販売ルートなどの全体戦略をできるだけ詳細にご記入ください。",null,null,null,"Business Models","Please provide as much detail as possible about your business strategy, including expected manufacturing and sales channels."]
[null,"製品・サービス","正式名、製造国、取得済認証、サイズ、特徴（セールスポイント等）、HSコード他を明記ください。",null,null,null,"Products / Services","Please specify the official name, country of manufacture, certification obtained, size, features (selling points, etc.), HS code, etc."]
[null,"参考資料\n※URLを記入ください。ファイルの場合は、メール添付でご提出ください。","企業パンフレット",null,null,null,"References\n※Links","Company brochure (in English)"]
[null,null,"製品・サービスカタログ①",null,null,null,null,"Catalog (in English)①"]
[null,null,"製品・サービスカタログ②",null,null,null,null,"Catalog (in English)②"]
[null,null,"製品・サービスカタログ③",null,null,null,null,"Catalog (in English)③"]
[null,"<依頼内容>",null,null,null,null,"<Request>"]
[null,"関心国・地域　※関心の高い順にご記入ください。",null,null,null,null,"Country/Region of Interest　"]
[null,"サービス項目","①特定の現地ビジネスに関する相談対応","・対面・オンライン面談にて、特定の現地ビジネスに関する情報提供を行います。",null,null,"Service Items","①Consultation/Briefing on specific local business issues","・To provide information on specific local businesses (in-person or online meetings)."]
[null,null,"②特定分野における市場・制度・生活環境実態などの情報提供","・輸出、進出に必要な特定分野における市場・制度・生活環境実態について調査します。\n・現地進出、現地法人運営にかかる法務・労務・税務・会計等の相談に文書で回答します。",null,null,null,"②Surveys on specific market, regulation, business environment","・To conduct a survey on specific market, regulation, business environment that is necessary for exporting and entering the market.\n・To answer legal, labor, tax, and accounting issues related to entering the local market and operating a local subsidiary."]
[null,null,"③パートナー候補リストアップ・アポイントメント取得","・現地のパートナー候補のリストアップを行います。\n・リスト企業への商談アポイントの取得・同行・同席を行います。",null,null,null,"③Identifying potential partners and arranging meetings","・To identify local potential partners.\n・To arrange and attend meetings with listed companies."]
[null,"依頼サービス\n※該当依頼フォームにご記入ください。\n※複数サービスをご希望の場合は、順番にサービスを案内させていただく場合がございます。",null,"▼選択",null,null,"Requested Services",null,{"$f":"IFERROR(VLOOKUP(D40,▼選択肢!N:O,2,FALSE),\"\")","v":"-"}]
[null,null,null,"▼選択",null,null,null,null,{"$f":"IFERROR(VLOOKUP(D41,▼選択肢!N:O,2,FALSE),\"\")","v":"-"}]
[null,null,null,"▼選択",null,null,null,null,{"$f":"IFERROR(VLOOKUP(D42,▼選択肢!N:O,2,FALSE),\"\")","v":"-"}]
[null,"<同意内容>",null,null,null,null,"　本シート入力後、該当フォーム名をClickしてください。"]
[null,"JETROウェブページの利用規約を読み、全てに同意したうえで申込をします。　\n※コンサルタント等からのJETROへの調査再委託を目的とした申込はできません。",null,null,null,"▼選択"]

{"sheet":"①相談対応","index":1,"n_rows":14,"n_cols":17,"rows_kept":14,"cut":false,"hidden":false,"merged":[[1,1,1,8],[6,4,6,5],[5,5,5,8],[6,1,7,2],[8,1,8,2],[8,3,8,8],[2,1,2,8],[3,1,3,8],[4,1,4,8],[5,1,5,2],[5,3,5,4],[6,7,6,8],[7,4,7,5],[7,7,7,8],[13,1,15,2],[13,3,15,8],[10,1,11,2],[12,1,12,2],[12,3,12,8],[9,1,9,2],[9,3,9,8],[10,4,10,5],[10,7,10,8],[11,4,11,5],[11,7,11,8],[1,9,1,16],[2,9,2,16],[3,9,3,16],[4,9,4,16],[5,9,5,10],[5,11,5,12],[5,13,5,16],[8,9,8,10],[8,11,8,16],[9,9,9,10],[9,11,9,16],[6,9,7,10],[6,12,6,13],[6,15,6,16],[7,12,7,13],[7,15,7,16],[12,9,12,10],[12,11,12,16],[13,9,15,10],[13,11,15,16],[10,9,11,10],[10,12,10,13],[10,15,10,16],[11,12,11,13],[11,15,11,16]]}
[null,null,null,null,null,null,null,null,"2021.9ver",null,null,null,null,null,null,null,"2021.9ver"]
[null,"2021年度　JETRO アフリカビジネスデスク申込書\n依頼フォーム①：特定の現地ビジネスに関する相談対応",null,null,null,null,null,null,null,"JETRO Africa Business Desk 2021\nREQUEST FORM①：Consultation/Briefing"]
[null,"※この黄色のセルは必須入力項目です。入力後無色になります。お申込前にご確認ください。",null,null,null,null,null,null,null,"※こちら側の情報は英語で記入ください。"]
[null,"依頼事項",null,null,null,null,null,null,null,"Request Proposal"]
[null,"※相談対応可能な対象国について事前にJETROウェブページをご確認ください。\n※面談のご希望日時はお申込日の2週間以上先を第四希望までご記入ください。調整を経て決定します。",null,null,null,null,null,null,null,"※Please check JETRO's website in advance to see which countries are available for this service.\n※Please fill out the date and time for a consultation/briefing at least two weeks in advance of your application date. The date and time of a consultation/briefing will be determined through coordination."]
[null,"依頼目的",null,"▼選択",null,"その他（　　　　　　　　　　　　　　　　　　　　　　　　　　　　）",null,null,null,"Purpose of Request",null,{"$f":"IFERROR(VLOOKUP(D6,▼選択肢!Q:R,2,FALSE),\"\")","v":"-"},null,"Others（　　　　　　　　　　　　　　　　　　　　　　　　　　　　）"]
[null,"対象国",null,"第一希望","▼選択",null,"第二希望","▼選択",null,"Target Countries",null,"First choice",{"$f":"IFERROR(VLOOKUP(E7,▼選択肢!S:T,2,FALSE),\"\")","v":"-"},null,"Second choice",{"$f":"IFERROR(VLOOKUP(H7,▼選択肢!S:T,2,FALSE),\"\")","v":"-"}]
[null,null,null,"第三希望","▼選択",null,null,null,null,null,null,"Third choice",{"$f":"IFERROR(VLOOKUP(E8,▼選択肢!S:T,2,FALSE),\"\")","v":"-"}]
[null,"対象地域",null,"（記入例）●●州、●●省、都市部/農村部",null,null,null,null,null,"Target Area"]
[null,"希望面談方法",null,"▼選択",null,null,null,null,null,"Preferred Method",null,{"$f":"IFERROR(VLOOKUP(D10,▼選択肢!U:V,2,FALSE),\"\")","v":"-"}]
[null,"面談希望日時（日本時間）\n※対象国の時差を考慮してご記入ください。",null,"第一希望",null,null,"第二希望",null,null,"Preferred Date and Time (Japan time)",null,"First choice",{"$f":"E11","v":"00:00:00"},null,"Second choice",{"$f":"H11","v":"00:00:00"}]
[null,null,null,"第三希望",null,null,"第四希望",null,null,null,null,"Third choice",{"$f":"E12","v":"00:00:00"},null,"Fourth choice",{"$f":"H12","v":"00:00:00"}]
[null,"希望面談ツール",null,"▼選択",null,null,null,null,null,"Preferred Online Meeting Tool",null,{"$f":"IFERROR(VLOOKUP(D13,▼選択肢!W:X,2,FALSE),\"\")","v":"-"}]
[null,"依頼内容\n※できるだけ具体的に記入ください。",null,null,null,null,null,null,null,"Request Details"]

{"sheet":"②情報提供","index":2,"n_rows":15,"n_cols":17,"rows_kept":15,"cut":false,"hidden":false,"merged":[[1,1,1,8],[2,1,2,8],[3,1,3,8],[4,1,4,8],[5,1,5,2],[5,3,5,4],[5,5,5,8],[9,1,11,2],[9,3,11,8],[6,1,7,2],[6,4,6,5],[6,7,6,8],[7,4,7,5],[7,7,7,8],[8,1,8,2],[8,3,8,8],[14,1,14,2],[14,3,14,8],[12,1,13,2],[12,4,12,5],[12,7,12,8],[13,4,13,5],[13,7,13,8],[1,9,1,16],[2,9,2,16],[3,9,3,16],[4,9,4,16],[5,9,5,10],[5,11,5,12],[5,13,5,16],[8,9,8,10],[8,11,8,16],[9,9,11,10],[9,11,11,16],[6,9,7,10],[6,12,6,13],[6,15,6,16],[7,12,7,13],[7,15,7,16],[14,9,14,10],[14,11,14,16],[12,9,13,10],[12,12,12,13],[12,15,12,16],[13,12,13,13],[13,15,13,16]]}
[null,null,null,null,null,null,null,null,"2021.9ver",null,null,null,null,null,null,null,"2021.9ver"]
[null,"2021年度　JETRO アフリカビジネスデスク申込書\n依頼フォーム②：特定分野における市場・制度・生活環境実態などの情報提供",null,null,null,null,null,null,null,"JETRO Africa Business Desk 2021\nREQUEST FORM②：Surveys"]
[null,"※この黄色のセルは必須入力項目です。入力後無色になります。お申込前にご確認ください。",null,null,null,null,null,null,null,"※こちら側の情報は英語で記入ください。"]
[null,"依頼事項",null,null,null,null,null,null,null,"Request Proposal"]
[null,"※相談対応可能な対象国について事前にJETROウェブページをご確認ください。\n※記入いただいた内容に応じて、事前に依頼内容についてJETRO東京窓口とのオンライン面談を調整します。面談のご希望日時はお申込日から3日目以降の日程を第四希望までご記入ください。\n※情報提供はメールでの回答となります。",null,null,null,null,null,null,null,"※Please check JETRO's website in advance to see which countries are available for this service.\n※We will arrange an online pre-meeting with the JETRO Tokyo office to discuss your request in advance, depending on the information you have provided. Please fill out the preferred date and time (up to four choices). Choices should be at least three days after your submission date.\n※Please note that the results of this survey will be provided via email."]
[null,"依頼目的",null,"▼選択",null,"その他（　　　　　　　　　　　　　　　　　　　　　　　　　　　　）",null,null,null,"Purpose of Request",null,{"$f":"IFERROR(VLOOKUP(D6,▼選択肢!Q:R,2,FALSE),\"\")","v":"-"},null,"Others（　　　　　　　　　　　　　　　　　　　　　　　　　　　　）"]
[null,"対象国",null,"第一希望","▼選択",null,"第二希望","▼選択",null,"Target Countries",null,"First choice",{"$f":"IFERROR(VLOOKUP(E7,▼選択肢!S:T,2,FALSE),\"\")","v":"-"},null,"Second choice",{"$f":"IFERROR(VLOOKUP(H7,▼選択肢!S:T,2,FALSE),\"\")","v":"-"}]
[null,null,null,"第三希望","▼選択",null,null,null,null,null,null,"Third choice",{"$f":"IFERROR(VLOOKUP(E8,▼選択肢!S:T,2,FALSE),\"\")","v":"-"}]
[null,"対象地域",null,"（記入例）●●州、●●省、都市部/農村部",null,null,null,null,null,"Target Area"]
[null,"依頼内容\n※できるだけ具体的に記入ください。",null,null,null,null,null,null,null,"Request Details"]
[]
[]
[null,"事前面談希望日時（日本時間）",null,"第一希望",null,null,"第二希望",null,null,"Preferred date and time of Pre-meeting (Japan time)",null,"First choice",{"$f":"E13","v":"00:00:00"},null,"Second choice",{"$f":"H13","v":"00:00:00"}]
[null,null,null,"第三希望",null,null,"第四希望",null,null,null,null,"Third choice",{"$f":"E14","v":"00:00:00"},null,"Fourth choice",{"$f":"H14","v":"00:00:00"}]
[null,"希望面談ツール",null,"▼選択",null,null,null,null,null,"Preferred Online Meeting Tool",null,{"$f":"IFERROR(VLOOKUP(D15,▼選択肢!W:X,2,FALSE),\"\")","v":"-"}]

{"sheet":"③リストアップ","index":3,"n_rows":21,"n_cols":17,"rows_kept":21,"cut":false,"hidden":false,"merged":[[9,1,9,8],[10,1,10,2],[10,3,10,4],[10,5,10,8],[13,1,13,2],[13,3,13,8],[11,1,11,2],[11,3,11,8],[8,1,8,2],[8,3,8,8],[1,1,1,8],[2,1,2,8],[3,1,3,8],[4,1,4,8],[5,1,5,2],[5,3,5,4],[5,5,5,8],[6,1,7,2],[6,4,6,5],[6,7,6,8],[7,4,7,5],[7,7,7,8],[19,1,19,2],[19,3,19,8],[12,1,12,2],[12,3,12,8],[17,1,18,2],[17,4,17,5],[17,7,17,8],[18,4,18,5],[18,7,18,8],[14,1,14,2],[16,1,16,2],[14,3,14,8],[16,3,16,8],[15,1,15,2],[15,3,15,8],[1,9,1,16],[2,9,2,16],[3,9,3,16],[4,9,4,16],[5,9,5,10],[5,11,5,12],[5,13,5,16],[8,9,8,10],[8,11,8,16],[9,9,9,16],[6,9,7,10],[6,12,6,13],[6,15,6,16],[7,12,7,13],[7,15,7,16],[10,9,10,10],[10,11,10,12],[10,13,10,16],[11,9,11,10],[11,11,11,16],[14,9,14,10],[14,11,14,16],[15,9,15,10],[15,11,15,16],[12,9,12,10],[12,11,12,16],[13,9,13,10],[13,11,13,16],[19,9,19,10],[19,11,19,16],[16,9,16,10],[16,11,16,16],[17,9,18,10],[17,12,17,13],[17,15,17,16],[18,12,18,13],[18,15,18,16]]}
[null,null,null,null,null,null,null,null,"2021.9ver",null,null,null,null,null,null,null,"2021.9ver"]
[null,"2021年度　JETRO アフリカビジネスデスク申込書\n依頼フォーム③：パートナー候補リストアップ・アポイントメント取得",null,null,null,null,null,null,null,"JETRO Africa Business Desk 2021\nREQUEST FORM③：Identifying Potential Partners and Arranging Meetings"]
[null,"※この黄色のセルは必須入力項目です。入力後無色になります。お申込前にご確認ください。",null,null,null,null,null,null,null,"※こちら側の情報は英語で記入ください。"]
[null,"依頼事項",null,null,null,null,null,null,null,"Request Proposal"]
[null,"※相談対応可能な対象国について事前にJETROウェブページをご確認ください。\n※記入いただいた内容に応じて、事前に依頼内容についてJETRO東京窓口とのオンライン面談を調整します。面談のご希望日時はお申込日から3日目以降の日程を第四希望までご記入ください。\n※情報提供はメールでの回答となります。",null,null,null,null,null,null,null,"※Please check JETRO's website in advance to see which countries are available for this service.\n※We will arrange an online pre-meeting with the JETRO Tokyo office to discuss your request in advance, depending on the information you have provided. Please fill out the preferred date and time (up to four choices). Choices should be at least three days after your submission date.\n※Please note that the list will be provided via email."]
[null,"依頼目的",null,"▼選択",null,"その他（　　　　　　　　　　　　　　　　　　　　　　　　　　　　）",null,null,null,"Purpose of Request",null,{"$f":"IFERROR(VLOOKUP(D6,▼選択肢!Q:R,2,FALSE),\"\")","v":"-"},null,"Others（　　　　　　　　　　　　　　　　　　　　　　　　　　　　）"]
[null,"対象国",null,"第一希望","▼選択",null,"第二希望","▼選択",null,"Target Countries",null,"First choice",{"$f":"IFERROR(VLOOKUP(E7,▼選択肢!S:T,2,FALSE),\"\")","v":"-"},null,"Second choice",{"$f":"IFERROR(VLOOKUP(H7,▼選択肢!S:T,2,FALSE),\"\")","v":"-"}]
[null,null,null,"第三希望","▼選択",null,null,null,null,null,null,"Third choice",{"$f":"IFERROR(VLOOKUP(E8,▼選択肢!S:T,2,FALSE),\"\")","v":"-"}]
[null,"対象地域",null,"（記入例）●●州、●●省、都市部/農村部",null,null,null,null,null,"Target Area"]
[null,"リストアップ条件",null,null,null,null,null,null,null,"Condition for Identifying Potential Partners"]
[null,"リストアップ先への貴社名の開示",null,"▼選択",null,"※「同意しない」を選択した場合、一部現地企業のリストアップができない場合があります。",null,null,null,"Disclosure of Your Company's Name",null,{"$f":"IFERROR(VLOOKUP(D11,▼選択肢!Y:Z,2,FALSE),\"\")","v":"-"},null,"※If you choose \"Disagree,\" you may not be able to list some local companies."]
[null,"企業リスト入手後の計画",null,"▼選択",null,null,null,null,null,"Planning after Receiving List",null,{"$f":"IFERROR(VLOOKUP(D12,▼選択肢!AE:AF,2,FALSE),\"\")","v":"-"}]
[null,"アポイントの取得",null,"▼選択",null,null,null,null,null,"Arrange a Meeting ",null,{"$f":"IFERROR(VLOOKUP(D13,▼選択肢!AG:AH,2,FALSE),\"\")","v":"-"}]
[null,"リストアップ希望企業\nの分類",null,null,null,null,null,null,null,"Category of Companies on the List "]
[null,"リストアップ先の\n対応可能言語",null,"▼選択",null,null,null,null,null,"Available Languages",null,{"$f":"IFERROR(VLOOKUP(D15,▼選択肢!AA:AB,2,FALSE),\"\")","v":"-"}]
[null,"除外を希望する企業や\nその条件",null,null,null,null,null,null,null,"Exclusive Companies Conditions "]
[null,"その他詳細な条件\n※市場調査、マーケティング結果をもとに詳細に記載ください。",null,null,null,null,null,null,null,"Other Detailed Conditions\n※Please provide detailed information based on your market research and marketing results."]
[null,"事前面談希望日時（日本時間）",null,"第一希望",null,null,"第二希望",null,null,"Preferred date and time of Pre-meeting (Japan time)",null,"First choice",{"$f":"E18","v":"00:00:00"},null,"Second choice",{"$f":"H18","v":"00:00:00"}]
[null,null,null,"第三希望",null,null,"第四希望",null,null,null,null,"Third choice",{"$f":"E19","v":"00:00:00"},null,"Fourth choice",{"$f":"H19","v":"00:00:00"}]
[null,"希望面談ツール",null,"▼選択",null,null,null,null,null,"Preferred Online Meeting Tool",null,{"$f":"IFERROR(VLOOKUP(D20,▼選択肢!W:X,2,FALSE),\"\")","v":"-"}]
[null,"※アポイントメント取得については、リスト提供後に希望を確認させていただきます。"]

{"sheet":"③-2アポ取得","index":4,"n_rows":26,"n_cols":17,"rows_kept":26,"cut":false,"hidden":false,"merged":[[21,7,21,8],[20,7,20,8],[26,7,26,8],[25,7,25,8],[24,7,24,8],[23,7,23,8],[22,7,22,8],[19,7,19,8],[23,4,23,6],[22,4,22,6],[21,4,21,6],[20,4,20,6],[19,4,19,6],[26,4,26,6],[25,4,25,6],[24,4,24,6],[25,1,26,1],[23,1,24,1],[21,1,22,1],[18,2,18,3],[20,2,20,3],[23,2,23,3],[21,2,21,3],[22,2,22,3],[19,1,20,1],[25,2,25,3],[26,2,26,3],[24,2,24,3],[19,2,19,3],[17,1,18,1],[18,4,18,6],[16,4,16,6],[16,2,16,3],[17,2,17,3],[17,4,17,6],[7,1,7,2],[7,3,7,8],[8,1,10,2],[8,4,8,5],[8,7,8,8],[9,4,9,5],[11,1,11,2],[11,3,11,8],[12,1,14,2],[12,3,14,8],[9,7,9,8],[10,4,10,8],[15,1,15,8],[18,7,18,8],[17,7,17,8],[16,7,16,8],[7,9,7,10],[7,11,7,16],[8,9,10,10],[1,1,1,8],[2,1,2,8],[3,1,3,8],[4,1,4,8],[5,1,6,2],[5,4,5,5],[5,7,5,8],[6,4,6,5],[6,7,6,8],[1,9,1,16],[2,9,2,16],[3,9,3,16],[4,9,4,16],[5,9,6,10],[5,12,5,13],[5,15,5,16],[6,12,6,13],[6,15,6,16],[11,9,11,10],[11,11,11,16],[12,9,14,10],[12,11,14,16],[8,12,8,13],[8,15,8,16],[9,12,9,13],[9,15,9,16],[10,12,10,16],[17,9,18,9],[17,10,17,11],[17,12,17,14],[17,15,17,16],[18,10,18,11],[18,12,18,14],[18,15,18,16],[15,9,15,16],[16,10,16,11],[16,12,16,14],[16,15,16,16],[21,9,22,9],[21,10,21,11],[21,12,21,14],[21,15,21,16],[22,10,22,11],[22,12,22,14],[22,15,22,16],[19,9,20,9],[19,10,19,11],[19,12,19,14],[19,15,19,16],[20,10,20,11],[20,12,20,14],[20,15,20,16],[25,9,26,9],[25,10,25,11],[25,12,25,14],[25,15,25,16],[26,10,26,11],[26,12,26,14],[26,15,26,16],[23,9,24,9],[23,10,23,11],[23,12,23,14],[23,15,23,16],[24,10,24,11],[24,12,24,14],[24,15,24,16]]}
[null,null,null,null,null,null,null,null,"2021.9ver",null,null,null,null,null,null,null,"2021.9ver"]
[null,"2021年度　JETRO アフリカビジネスデスク申込書\n依頼フォーム③-2：パートナー候補リストアップ・アポイントメント取得",null,null,null,null,null,null,null,"JETRO Africa Business Desk 2021\nREQUEST FORM③：Identifying Potential Partners and Arranging Meetings"]
[null,"※この黄色のセルは必須入力項目です。入力後無色になります。お申込前にご確認ください。",null,null,null,null,null,null,null,"※こちら側の情報は英語で記入ください。"]
[null,"依頼事項",null,null,null,null,null,null,null,"Request Proposal"]
[null,"※JETROからご提供した企業リストを添付してください。\n※オンライン商談のご希望日時はお申込日の2週間以上先を第四希望までご記入ください。調整を経て決定します。訪問の場合は調整に時間がかかることがありますので、事前にご相談ください。\n※商談には、ジェトロ職員もしくはコーディネーターが同席します。",null,null,null,null,null,null,null,"※Please attach the list of companies provided by JETRO.\n※Please enter the date and time you would like to meet with companies at least two weeks in advance of your application date. The date and time of the interview will be determined through coordination. If you want to visit at their office, please let JETRO know in advance.\n※ Staff from JETRO or coodinator is present at the business meeting."]
[null,"対象国",null,"第一希望","▼選択",null,"第二希望","▼選択",null,"Target Countries",null,"First choice",{"$f":"IFERROR(VLOOKUP(E6,▼選択肢!S:T,2,FALSE),\"\")","v":"-"},null,"Second choice",{"$f":"IFERROR(VLOOKUP(H6,▼選択肢!S:T,2,FALSE),\"\")","v":"-"}]
[null,null,null,"第三希望","▼選択",null,null,null,null,null,null,"Third choice",{"$f":"IFERROR(VLOOKUP(E7,▼選択肢!S:T,2,FALSE),\"\")","v":"-"}]
[null,"希望商談方法",null,"▼選択",null,null,null,null,null,"Preferred Method",null,{"$f":"IFERROR(VLOOKUP(D8,▼選択肢!AC:AD,2,FALSE),\"\")","v":"-"}]
[null,"商談希望日時\n（日本時間）",null,"第一希望",null,null,"第二希望",null,null,"Preferred date and time of Meeting (Japan time)",null,"First choice",{"$f":"E9","v":"00:00:00"},null,"Second choice",{"$f":"H9","v":"00:00:00"}]
[null,null,null,"第三希望",null,null,"第四希望",null,null,null,null,"Third choice",{"$f":"E10","v":"00:00:00"},null,"Fourth choice",{"$f":"H10","v":"00:00:00"}]
[null,null,null,"備考",null,null,null,null,null,null,null,"Remarks"]
[null,"希望商談ツール",null,"▼選択",null,null,null,null,null,"Preferred Online Meeting Tool",null,{"$f":"IFERROR(VLOOKUP(D12,▼選択肢!W:X,2,FALSE),\"\")","v":"-"}]
[null,"商談内容・目的\n※できるだけ具体的に記入ください。",null,null,null,null,null,null,null,"Purpose of Meeting"]
[]
[]
[null,"商談アポイント取得希望先（優先順位の高い先からご記入ください。現時点では商談調整は確約できません。）",null,null,null,null,null,null,null,"Requested Company for Business Appointments\n (Please put the highest priority first. We cannot guarantee business appointments at this time.)"]
[null,null,"企業名",null,"選定理由",null,null,"自社での接触状況",null,null,"Company Name",null,"Reason for Selection",null,null,"Current Communication Status"]
[null,"第一希望",null,null,null,null,null,null,null,"First choice"]
[]
[null,"第二希望",null,null,null,null,null,null,null,"Second choice"]
[]
[null,"第三希望",null,null,null,null,null,null,null,"Third choice"]
[]
[null,"第四希望",null,null,null,null,null,null,null,"Fourth choice"]
[]
[null,"第五希望",null,null,null,null,null,null,null,"Fifth choice"]

{"sheet":"▼選択肢","index":5,"n_rows":83,"n_cols":34,"rows_kept":83,"cut":false,"hidden":true,"merged":[[1,1,1,13],[1,16,1,33]]}
[]
[null,"【共通】申込書",null,null,null,null,null,null,null,null,null,null,null,null,null,null,"依頼フォーム"]
[null,"日本・海外","Location","業種","Industry","商品","Product","現在の進捗状況","Current Business Phase","輸出・進出経験","Export/Investment Experience","輸出形態","Direct or indirect export","依頼サービス","Request","同意","依頼目的","Purpose","対象国","Target Countries","希望面談方法","How to meet","商談希望ツール","Online Meeting Tool","同意","Agreement","対応可能言語","Language","希望商談方法","How to meet","企業リスト入手後の計画","Planning after Receiving List","アポイントの取得","How to arrange a meeting"]
[null,"▼選択","-","▼選択","-","▼選択","-","▼選択","-","▼選択","-","▼選択","-","▼選択","-","▼選択","▼選択","-","▼選択","-","▼選択","-","▼選択","-","▼選択","-","▼選択","-","▼選択","-","▼選択","-","▼選択","-"]
[null,"日本企業等","Japan","製造業","Manufacture","水産物・水産加工品","Seafood, Processed Seafood Products","①市場調査","①Market research","あり","Yes","直接輸出","Direct export","①相談対応シートにご記入ください。","①Consultation/Briefing","同意します","輸出","Export","ウガンダ","Uganda","オンライン面談","Online","Teams","Teams","同意する","Agree","問わない（現地言語含む）","Either English or local language","オンライン商談","Online","商談アポが取得できれば、1～３か月以内に現地出張を検討","If a business meeting is arranged, consider a business trip within one to three months.","商談アポイントは自身で取得予定","I am planning to arrange business meetings by myself."]
[null,"海外に所在する企業等","Overseas","卸売業","Wholesale","牛肉","Beef","②進出先選定","②Looking for business location","なし","No","間接輸出","Indirect export","②情報提供シートにご記入ください。","②Conducting surveys",null,"進出","Investment","エジプト","Egypt","海外事務所での面談","Visit at the JETRO office","Zoom","Zoom","同意しない","Disagree","英語対応可（地域等によってリストアップ可能な先が大幅に減る場合があります）","Only in English","訪問","Visit the company's office","商談アポが取得できれば、半年以内に現地出張を検討","If a business meeting is arranged, consider a business trip within 6 months.","自身で取得予定だが、上手くいかなければJETROにアポイントを取得してほしい","I am planning to arrange business meetings by myself. But if it doesn't work out, I'd like JETRO to arrange a meeting."]
[null,null,null,"小売業","Retail","豚肉","Pork","③計画策定（ロードマップなど）","③Planning",null,null,"直接・間接輸出両方","Both direct and indirect export","③リストアップシートにご記入ください。","③Identifying potential partners ",null,"輸出及び進出","Export and Investment","エチオピア","Ethiopia",null,null,"どちらも可","Either Teams or Zoom",null,null,null,null,null,null,"メール又は電話で企業にコンタクトする予定。現時点では現地への出張は検討していない","Plan to contact a company by e-mail or phone. Not considering a business trip at this time.","JETROに商談アポイントを取得してほしい","I want JETRO to arrange a meeting."]
[null,null,null,"サービス業","Service","鶏肉","Chicken","④現地パートナー選定","④Looking for local partners",null,null,null,null,null,null,null,"輸入","Import","ガーナ","Ghana"]
[null,null,null,"その他","Others","その他肉類","Other Meat","⑤その他","⑤Others",null,null,null,null,null,null,null,"その他","Others","ケニア","Kenya"]
[null,null,null,null,null,"牛乳・乳製品","Milk, Dairy Products",null,null,null,null,null,null,null,null,null,null,null,"コートジボワール","Cote d'Ivoire"]
[null,null,null,null,null,"米・包装米飯","Rice, Packed Rice",null,null,null,null,null,null,null,null,null,null,null,"セネガル","Senegal"]
[null,null,null,null,null,"米菓","Rice Confectionery",null,null,null,null,null,null,null,null,null,null,null,"タンザニア","Tanzania"]
[null,null,null,null,null,"清涼飲料水","Beverages",null,null,null,null,null,null,null,null,null,null,null,"ナイジェリア","Nigeria"]
[null,null,null,null,null,"日本酒","Sake",null,null,null,null,null,null,null,null,null,null,null,"南アフリカ","South Africa"]
[null,null,null,null,null,"焼酎","Shochu",null,null,null,null,null,null,null,null,null,null,null,"モザンビーク","Mozambique"]
[null,null,null,null,null,"その他アルコール飲料","Other Alcoholic Beverages",null,null,null,null,null,null,null,null,null,null,null,"モロッコ","Morocco"]
[null,null,null,null,null,"野菜","Vegetable",null,null,null,null,null,null,null,null,null,null,null,"ルワンダ","Rwanda"]
[null,null,null,null,null,"果実","Fruit"]
[null,null,null,null,null,"きのこ","Mushroom"]
[null,null,null,null,null,"木材","Lumber"]
[null,null,null,null,null,"植木・盆栽","Garden Plant, Bonsai"]
[null,null,null,null,null,"鉢物","Potted Plant"]
[null,null,null,null,null,"切り花","Cut Flowers"]
[null,null,null,null,null,"茶","Tea"]
[null,null,null,null,null,"菓子（米菓除）","Confectionery (Except Rice Confectionery)"]
[null,null,null,null,null,"調味料類","Seasoning"]
[null,null,null,null,null,"その他加工食品","Other Processed Food Products"]
[null,null,null,null,null,"種苗","Seedling"]
[null,null,null,null,null,"宝飾・貴金属の製品","Metallic Products"]
[null,null,null,null,null,"原動機","Power Generating Machinery"]
[null,null,null,null,null,"事務用機器（コンピュータ・同関連機器含む）","Office Machines (Including Computer and Computer Accessories)"]
[null,null,null,null,null,"金属加工機械・同関連機具","Metal Working Machinery and Accessories of Such"]
[null,null,null,null,null,"産業用機械","Industrial Machinery"]
[null,null,null,null,null,"その他機械・部品","Other Machinery and Parts"]
[null,null,null,null,null,"電気・電子機器","Electrical and Electronic Appliances"]
[null,null,null,null,null,"輸送機械（自動車/二輪車部品、自動車/二輪車付属品等）","Transport Equipment (Auto-Parts, Car Accessories)"]
[null,null,null,null,null,"輸送機械（航空宇宙関連）","Transport Equipment (Aerospace Industry)"]
[null,null,null,null,null,"輸送機械（その他）","Transport Equipment (Others)"]
[null,null,null,null,null,"精密機器(医療機器)","Medical Equipment"]
[null,null,null,null,null,"精密機器（医療機器以外）","Precision Equipment (Except Medical Equipment)"]
[null,null,null,null,null,"住宅、家具、室内装備品","Housing, Furniture, Other Indoor Accessories"]
[null,null,null,null,null,"事務用品・筆記用具","Office Supplie, Stationary"]
[null,null,null,null,null,"人形・玩具・遊戯具","Dolls, Toys, Play Goods"]
[null,null,null,null,null,"運動用具（スキー、ゴルフ、テニス、バドミントン、野球、サーフボード、釣り具、トレーニング具、スポーツ用履物等）","Sports Equipment (Skiing, Golf, Table Tennis, Tennis, Badmintonm Baseball, Surfing, Fishing and Training Equipment, Sports Shoes, Etc.)"]
[null,null,null,null,null,"美術・工芸品（伝統工芸品）","Works of Art (Traditional Crafts)"]
[null,null,null,null,null,"ライフスタイル関連（台所用品、室内装飾・装飾品、ギフト用品、ゲーム、ペット用品、ホビー用品など）","Life-Style (Kitchen, Decoration, Ornament, Gift, Game, Pet, Hobby Etc.)"]
[null,null,null,null,null,"ライフスタイル関連（化粧品）","Cosmetic Products"]
[null,null,null,null,null,"書籍、新聞、その他印刷物","Printed Books, Newspapers, Other Printed Material"]
[null,null,null,null,null,"ファッション","Fashion Goods"]
[null,null,null,null,null,"その他雑品","Other Miscellaneous Goods"]
[null,null,null,null,null,"建設・エンジニアリング業","Construction and Engineering Industries"]
[null,null,null,null,null,"運輸関連","Transportation Businesses"]
[null,null,null,null,null,"電気・ガス・熱供給・水道事業","Electricity, Gas, Heating, and Water Industries"]
[null,null,null,null,null,"デジタルテクノロジー関連（AI、IoTなど）","Digital Technology (Ai, Iot)"]
[null,null,null,null,null,"情報システム","Information System"]
[null,null,null,null,null,"通信システム","Communications Businesses"]
[null,null,null,null,null,"飲食店","Eating and Drinking Establishments"]
[null,null,null,null,null,"金融・保険関連","Finance and Insurance Industries"]
[null,null,null,null,null,"不動産関連","Real Estate Businesses"]
[null,null,null,null,null,"サービス関連（生活関連）","Day To Day Service Businesses"]
[null,null,null,null,null,"サービス関連（ヘルスケア、スポーツ関連）","Service Businesses（Healthcare, Sports)"]
[null,null,null,null,null,"サービス関連（コンテンツ関連）","Service Businesses (Contents)"]
[null,null,null,null,null,"サービス関連（観光、旅行関連）","Service Businesses（Tourism and Travel Related Services)"]
[null,null,null,null,null,"情報処理・情報サービス・調査関連","Information Processing and Research Businesses"]
[null,null,null,null,null,"法務・行政手続き関連サービス関連","Legal and Administrative Procedure Related Service Businesses"]
[null,null,null,null,null,"ビジネス支援サービス関連","Business Support Service Businesses"]
[null,null,null,null,null,"その他サービス","Other Services"]
[null,null,null,null,null,"バイオテクノロジー（医薬品等含む）","Bio-Technologies"]
[null,null,null,null,null,"社会福祉・高齢化関連","Social Welfare and Aging"]
[null,null,null,null,null,"防犯・防災関連","Crime Prevention and Fire Prevention Related Goods and Equipment"]
[null,null,null,null,null,"環境関連","Environment"]
[null,null,null,null,null,"省エネ技術","Energy-Saving Technologies"]
[null,null,null,null,null,"鉱物性原料","Mineral Ores"]
[null,null,null,null,null,"化学品","Chemical Products"]
[null,null,null,null,null,"プラスチック","Plastic and Plastic Products"]
[null,null,null,null,null,"ゴム","Rubber and Rubber Products"]
[null,null,null,null,null,"原皮・皮革","Raw Leather and Leather Products"]
[null,null,null,null,null,"毛皮","Fur and Fur Products"]
[null,null,null,null,null,"パルプ・紙","Pulp and Paper Products"]
[null,null,null,null,null,"糸類","Yarns and Threads"]
[null,null,null,null,null,"織物、繊維","Fabrics, Textile"]
[null,null,null,null,null,"金属","Metals"]
[null,null,null,null,null,"非金属（石、セメント、セラミック、ガラス等）","Non-Metallic Products (Products Made From Stone, Cement, Ceramics, Chinaware, Glass, Etc.)"]